bitfinex-derivatives/quotes_SOLF0:USTF0_20250626
["timestamp","ask_amount","ask_price","bid_price","bid_amount"]
[1750903148018,6.8832,145.2,145.19,8.44770695]
[1750903148205,6.8832,145.2,145.18,8.44770695]
[1750903148407,6.8837,145.19,145.18,8.44770695]
[1750903148813,6.8837,145.19,145.17,10.83950695]
[1750903149922,6.8833,145.2,145.17,10.83950695]
[1750903151525,6.8837,145.19,145.17,10.83950695]
[1750903154230,6.8834,145.2,145.18,8.44770695]
[1750903154731,40.25076498,145.22,145.18,8.44770695]
[1750903154931,36.84,145.22,145.18,8.44770695]
[1750903155927,36.84,145.22,145.19,8.44770695]
[1750903156319,42.39066498,145.25,145.19,8.44770695]
[1750903156532,6.8823,145.22,145.19,8.44770695]
[1750903156732,38.9799,145.25,145.19,8.44770695]
[1750903157118,42.39066498,145.25,145.19,8.44770695]
[1750903157332,6.8824,145.22,145.19,8.44770695]
[1750903160733,6.882,145.23,145.19,8.44770695]
[1750903161833,6.8813,145.24,145.19,8.44770695]
[1750903162137,40.09076498,145.27,145.22,8.44770695]
[1750903163331,40.09076498,145.27,145.21,8.44770695]
[1750903164729,6.8817,145.24,145.21,8.44770695]
[1750903166834,6.8819,145.23,145.21,8.44770695]
[1750903169342,3.41076498,145.25,145.21,8.44770695]
[1750903169839,6.882,145.23,145.21,8.44770695]
[1750903171437,2.2489,145.29,145.21,11.85847193]
[1750903171632,2.2489,145.29,145.23,8.44770695]
[1750903171834,3.41076498,145.28,145.23,8.44770695]
[1750903172038,6.8807,145.26,145.22,8.44770695]
[1750903172238,6.8807,145.26,145.23,8.44770695]
[1750903172933,6.8807,145.26,145.22,8.44770695]
[1750903173744,6.8807,145.26,145.22,15.33000695]
[1750903175344,6.8807,145.26,145.23,8.44770695]
[1750903175537,6.8813,145.24,145.23,8.44770695]
[1750903175838,3.41076498,145.28,145.22,8.44770695]
[1750903176239,3.41076498,145.28,145.21,8.44770695]
[1750903176639,6.8813,145.25,145.21,8.44770695]
[1750903177642,6.8814,145.24,145.21,8.44770695]
[1750903178746,6.881,145.25,145.21,8.44770695]
[1750903179042,6.881,145.25,145.21,15.33030695]
[1750903179839,6.881,145.25,145.22,8.44770695]
[1750903180240,6.8805,145.26,145.22,15.33000695]
[1750903180743,6.8805,145.26,145.23,2.4326]
[1750903180935,6.88,145.27,145.23,17.76210695]
[1750903181532,6.8795,145.28,145.24,6.8813]
[1750903184143,6.8791,145.29,145.25,6.8807]
[1750903184346,6.8791,145.29,145.25,15.32840695]
[1750903184548,36.68,145.3,145.25,8.44770695]
[1750903185545,6.8798,145.28,145.25,8.44770695]
[1750903185744,40.09076498,145.3,145.25,8.44770695]
[1750903185941,40.09076498,145.3,145.23,20.8580254]
[1750903185942,3.41076498,145.28,145.24,8.44770695]
[1750903186336,6.8802,145.27,145.24,8.44770695]
[1750903187446,6.8795,145.28,145.24,8.44770695]
[1750903187650,40.09076498,145.3,145.24,8.44770695]
[1750903187945,40.09076498,145.3,145.24,15.32870695]
[1750903188150,6.8793,145.29,145.24,15.32870695]
[1750903188352,6.8793,145.29,145.24,8.44770695]
[1750903188741,43.5586,145.3,145.25,8.44770695]
[1750903188940,43.5586,145.3,145.27,8.44770695]
[1750903189341,43.5586,145.3,145.26,8.44770695]
[1750903189745,596.9839,145.33,145.26,8.44770695]
[1750903189746,36.56,145.33,145.27,3.41076498]
[1750903190048,36.56,145.33,145.28,8.44770695]
[1750903190443,36.56,145.33,145.29,2.3373]
[1750903190951,6.8779,145.32,145.29,8.64768134]
[1750903191153,6.8779,145.32,145.3,6.31038134]
[1750903192153,6.878,145.31,145.29,8.64768134]
[1750903192750,6.8785,145.3,145.29,8.64768134]
[1750903192955,6.8785,145.3,145.29,6.31038134]
[1750903193262,3.41076498,145.32,145.27,6.31038134]
[1750903193559,6.8789,145.3,145.27,6.31038134]
[1750903193756,3.41076498,145.32,145.27,6.31038134]
[1750903195445,6.8792,145.29,145.27,6.31038134]
[1750903197563,6.8792,145.29,145.27,6.30630054]
[1750903198754,6.8792,145.29,145.28,6.30630054]
[1750903199153,6.8794,145.28,145.27,6.30630054]
[1750903199557,3.41076498,145.32,145.27,6.30630054]
[1750903199958,6.8791,145.29,145.27,6.30630054]
[1750903200555,3.41076498,145.32,145.27,6.30630054]
[1750903200863,36.56,145.33,145.28,6.30630054]
[1750903201055,43.4375,145.33,145.29,6.30630054]
[1750903201761,6.8767,145.34,145.3,3.41076498]
[1750903202059,6.8767,145.34,145.3,11.94426552]
[1750903202249,36.54,145.36,145.3,8.53350054]
[1750903202448,5.74896498,145.38,145.31,6.30630054]
[1750903202649,3.41076498,145.36,145.32,6.30630054]
[1750903202853,3.41076498,145.36,145.3,8.53350054]
[1750903203459,3.41076498,145.36,145.31,6.30630054]
[1750903203669,5.74896498,145.38,145.31,6.30630054]
[1750903203962,5.74896498,145.38,145.32,6.30630054]
[1750903204151,6.876,145.36,145.32,6.30630054]
[1750903204461,5.74896498,145.38,145.32,6.30630054]
[1750903204668,6.8769,145.34,145.32,6.30630054]
[1750903204866,6.8769,145.34,145.31,6.30630054]
[1750903205266,38.8122,145.39,145.32,3.41076498]
[1750903205565,36.54,145.39,145.34,3.41076498]
[1750903205765,36.54,145.39,145.34,9.71706552]
[1750903205957,43.4144,145.39,145.34,9.71706552]
[1750903206359,36.54,145.39,145.34,9.71706552]
[1750903206561,6.876,145.36,145.33,42.84630054]
[1750903206960,6.8764,145.35,145.33,42.84630054]
[1750903207155,6.8764,145.35,145.33,6.30630054]
[1750903207461,6.8764,145.35,145.32,6.30630054]
[1750903211575,3.41076498,145.36,145.31,6.30630054]
[1750903211772,36.54,145.39,145.31,6.30630054]
[1750903211773,2.3611,145.38,145.31,6.30630054]
[1750903211966,6.8772,145.33,145.31,6.30630054]
[1750903212162,36.44,145.35,145.28,8.75410054]
[1750903212371,3.41076498,145.34,145.29,6.30630054]
[1750903212569,6.8779,145.32,145.29,6.30630054]
[1750903213464,4.7137,145.38,145.3,6.30630054]
[1750903213771,3.41076498,145.33,145.29,6.30630054]
[1750903214075,6.8779,145.32,145.28,6.30630054]
[1750903214280,6.8779,145.32,145.29,6.30630054]
[1750903214576,36.44,145.34,145.31,6.30630054]
[1750903214875,3.41076498,145.36,145.31,6.30630054]
[1750903215370,6.8765,145.35,145.31,6.30630054]
[1750903217081,6.8767,145.34,145.31,6.30630054]
[1750903217376,6.8762,145.35,145.31,6.30630054]
[1750903217877,43.3138,145.4,145.34,6.30630054]
[1750903218074,36.44,145.4,145.34,6.30630054]
[1750903218278,36.44,145.4,145.34,9.71706552]
[1750903218473,6.8747,145.39,145.34,9.71706552]
[1750903219076,43.3139,145.4,145.34,16.59346552]
[1750903219575,6.8744,145.39,145.34,9.71706552]
[1750903220170,6.8748,145.38,145.34,6.30630054]
[1750903220473,3.41076498,145.37,145.34,6.30630054]
[1750903220671,3.41076498,145.35,145.3,42.74630054]
[1750903220882,6.8769,145.34,145.3,42.74630054]
[1750903221077,36.44,145.36,145.3,42.74630054]
[1750903221277,10.28736498,145.35,145.31,6.30630054]
[1750903221475,2.2412,145.38,145.31,6.30630054]
[1750903221673,36.44,145.39,145.33,6.30630054]
[1750903222570,43.3146,145.39,145.34,6.8765]
[1750903222777,36.44,145.39,145.34,6.8765]
[1750903222977,36.44,145.39,145.33,6.30630054]
[1750903223366,6.8747,145.38,145.33,13.18300054]
[1750903223773,36.44,145.39,145.33,6.30630054]
[1750903223978,43.3143,145.39,145.34,13.18280054]
[1750903224175,36.44,145.44,145.36,3.41076498]
[1750903224378,39.85076498,145.44,145.37,6.30630054]
[1750903224576,6.8727,145.43,145.37,13.18110054]
[1750903225272,6.8729,145.42,145.37,9.71706552]
[1750903225478,36.44,145.44,145.37,9.71706552]
[1750903225874,6.8727,145.43,145.37,9.71706552]
[1750903226075,36.44,145.44,145.37,16.59216552]
[1750903226279,36.44,145.44,145.37,9.71706552]
[1750903226475,6.8729,145.42,145.37,9.71706552]
[1750903226676,6.8729,145.42,145.38,6.8747]
[1750903227178,6.8724,145.43,145.38,6.8747]
[1750903227383,36.44,145.44,145.38,6.8747]
[1750903227579,3.41076498,145.41,145.37,6.30630054]
[1750903227769,3.41076498,145.41,145.35,8.70260054]
[1750903227770,6.8746,145.39,145.35,8.70260054]
[1750903228481,6.8747,145.38,145.35,8.70260054]
[1750903228680,3.41076498,145.41,145.35,8.70260054]
[1750903228889,3.41076498,145.39,145.34,42.74630054]
[1750903229080,6.8752,145.37,145.34,6.30630054]
[1750903229385,39.85076498,145.4,145.34,6.30630054]
[1750903230683,6.8748,145.38,145.34,6.30630054]
[1750903231282,6.8743,145.39,145.34,13.18280054]
[1750903231491,6.8743,145.39,145.35,6.30630054]
[1750903232083,3.41076498,145.42,145.35,46.13706552]
[1750903232287,36.42,145.43,145.36,8.66890054]
[1750903232485,36.42,145.43,145.37,6.30630054]
[1750903232871,6.8736,145.41,145.37,6.30630054]
[1750903234886,3.41076498,145.42,145.37,6.30630054]
[1750903235085,36.42,145.43,145.37,9.71706552]
[1750903235285,6.872,145.44,145.39,3.41076498]
[1750903235586,6.872,145.44,145.39,9.71706552]
[1750903235784,38.8549,145.46,145.4,6.30630054]
[1750903235985,36.42,145.46,145.41,9.71706552]
[1750903236178,36.42,145.5,145.41,9.71706552]
[1750903236371,36.42,145.5,145.41,16.59026552]
[1750903236372,39.83076498,145.5,145.41,16.59026552]
[1750903236572,39.83076498,145.5,145.41,9.71706552]
[1750903236982,6.8708,145.47,145.42,6.8728]
[1750903237376,6.8708,145.47,145.42,13.17910054]
[1750903238293,6.8708,145.47,145.43,6.8723]
[1750903238480,6.871,145.46,145.41,9.71706552]
[1750903238681,3.41076498,145.49,145.41,6.30630054]
[1750903238880,3.41076498,145.49,145.41,9.71706552]
[1750903239289,6.8711,145.46,145.41,9.71706552]
[1750903239688,6.8711,145.46,145.41,16.59016552]
[1750903240691,6.8714,145.45,145.41,10.28386498]
[1750903241488,6.871,145.46,145.41,16.59016552]
[1750903242587,6.871,145.46,145.42,6.8728]
[1750903243292,6.8705,145.47,145.42,6.8728]
[1750903243585,6.8705,145.47,145.42,2.4419]
[1750903243986,6.8705,145.47,145.42,9.3143]
[1750903244689,3.41076498,145.49,145.42,2.4419]
[1750903245987,6.8712,145.46,145.42,2.4419]
[1750903246180,36.42,145.5,145.43,3.41076498]
[1750903246991,36.42,145.5,145.45,3.41076498]
[1750903247285,42.57826498,145.53,145.45,3.41076498]
[1750903247486,6.8682,145.52,145.47,3.41076498]
[1750903248087,43.5877,145.53,145.47,3.41076498]
[1750903248590,5.79706498,145.55,145.48,2.301]
[1750903248791,3.41076498,145.51,145.44,45.39290054]
[1750903248993,3.41076498,145.51,145.44,39.0866]
[1750903249383,6.8699,145.49,145.44,45.9583]
[1750903249592,3.41076498,145.51,145.44,39.0866]
[1750903249787,6.8702,145.48,145.44,36.72]
[1750903250183,36.72,145.52,145.44,36.72]
[1750903250493,6.8709,145.47,145.44,36.72]
[1750903250693,36.72,145.52,145.43,4.7169]
[1750903250894,6.8701,145.48,145.43,11.5888]
[1750903251388,6.8692,145.5,145.45,6.8711]
[1750903252095,36.72,145.52,145.43,16.69049115]
[1750903252096,42.38729061,145.52,145.43,17.89520054]
[1750903252291,42.38729061,145.52,145.43,4.7169]
[1750903252896,6.87,145.48,145.44,6.8718]
[1750903253393,6.8705,145.47,145.43,4.7169]
[1750903253592,6.8705,145.47,145.43,2.301]
[1750903255686,6.8705,145.47,145.43,9.1733]
[1750903256401,6.8701,145.48,145.44,6.8718]
[1750903256595,5.66729061,145.5,145.43,2.301]
[1750903257397,5.66729061,145.5,145.43,9.1732]
[1750903257797,5.66729061,145.5,145.43,2.301]
[1750903258295,6.8708,145.47,145.43,2.301]
[1750903258686,6.8708,145.47,145.43,9.1733]
[1750903258892,36.72,145.52,145.43,2.301]
[1750903259091,42.38729061,145.52,145.43,2.301]
[1750903259291,42.38729061,145.52,145.44,6.8716]
[1750903259491,6.8698,145.49,145.43,8.60730054]
[1750903259698,42.38729061,145.52,145.45,6.871]
[1750903260001,6.8692,145.5,145.45,6.871]
[1750903260596,6.8692,145.5,145.44,6.30630054]
[1750903260597,42.38729061,145.52,145.44,6.8718]
[1750903260809,42.38729061,145.52,145.43,8.60730054]
[1750903261304,36.72,145.52,145.45,6.30630054]
[1750903261698,6.8689,145.51,145.46,6.8706]
[1750903261995,36.72,145.52,145.45,6.30630054]
[1750903262196,6.8695,145.5,145.45,6.8713]
[1750903262400,36.72,145.52,145.44,11.97359115]
[1750903262592,36.72,145.52,145.43,8.60730054]
[1750903262593,42.38729061,145.52,145.43,8.60730054]
[1750903262797,5.66729061,145.5,145.42,6.30630054]
[1750903262995,5.66729061,145.48,145.41,6.30630054]
[1750903263222,36.7,145.47,145.4,6.30630054]
[1750903263405,36.7,145.47,145.41,6.30630054]
[1750903263599,36.7,145.47,145.39,16.38849756]
[1750903263600,42.36729061,145.47,145.39,6.30630054]
[1750903263900,42.36729061,145.47,145.39,13.18040054]
[1750903264106,42.36729061,145.47,145.39,6.30630054]
[1750903264107,5.66729061,145.45,145.39,6.30630054]
[1750903264299,5.66729061,145.45,145.38,6.30630054]
[1750903264510,5.66729061,145.43,145.37,8.70170054]
[1750903264695,42.36729061,145.43,145.37,8.70170054]
[1750903265003,6.8735,145.41,145.37,8.70170054]
[1750903265897,6.8729,145.42,145.37,15.57680054]
[1750903268905,36.7,145.43,145.39,6.8741]
[1750903269112,36.7,145.43,145.39,13.18040054]
[1750903269408,36.7,145.43,145.4,6.30630054]
[1750903269612,37.16,145.46,145.4,6.30630054]
[1750903269907,6.8716,145.45,145.4,6.30630054]
[1750903270209,6.8716,145.45,145.4,13.17970054]
[1750903270407,37.16,145.46,145.4,6.30630054]
[1750903270708,44.0313,145.46,145.4,6.30630054]
[1750903270906,37.16,145.46,145.41,6.8732]
[1750903271815,44.0309,145.46,145.42,6.8728]
[1750903273007,37.16,145.46,145.42,6.8728]
[1750903273209,37.16,145.46,145.42,13.17910054]
[1750903274511,44.031,145.46,145.42,13.17910054]
[1750903275205,44.031,145.46,145.43,6.30630054]
[1750903278314,37.16,145.46,145.43,6.30630054]
[1750903279207,37.16,145.46,145.44,6.30630054]
[1750903279404,6.8705,145.47,145.44,6.30630054]
[1750903283613,6.8705,145.47,145.43,6.30630054]
[1750903284911,6.8701,145.48,145.43,13.17860054]
[1750903285112,6.8701,145.48,145.44,6.30630054]
[1750903285315,597.00085436,145.52,145.45,3.40085436]
[1750903285514,44.0282,145.52,145.47,16.5772549]
[1750903285819,37.16,145.52,145.48,6.30630054]
[1750903286210,6.8689,145.51,145.47,9.7071549]
[1750903286611,37.16,145.52,145.47,9.7071549]
[1750903286811,44.0284,145.52,145.48,6.8699]
[1750903287116,44.0284,145.52,145.48,13.17620054]
[1750903288020,6.8686,145.51,145.48,6.30630054]
[1750903288821,6.8691,145.5,145.48,6.30630054]
[1750903290421,6.8691,145.5,145.47,6.30630054]
[1750903291418,40.56085436,145.52,145.46,6.30630054]
[1750903291625,40.56085436,145.52,145.44,142.66990695]
[1750903291626,3.40085436,145.48,145.44,6.30630054]
[1750903291824,40.56085436,145.52,145.43,6.30630054]
[1750903291825,3.40085436,145.46,145.43,6.30630054]
[1750903292125,6.8722,145.44,145.42,6.30630054]
[1750903292820,6.8723,145.43,145.41,6.30630054]
[1750903293528,6.8728,145.42,145.41,6.30630054]
[1750903293832,3.40085436,145.43,145.4,6.30630054]
[1750903294015,6.8733,145.41,145.39,6.30630054]
[1750903294221,40.54085436,145.42,145.38,6.30630054]
[1750903295028,37.14,145.42,145.38,6.30630054]
[1750903295219,37.14,145.42,145.39,6.30630054]
[1750903295621,40.54085436,145.42,145.39,6.30630054]
[1750903295821,40.54085436,145.42,145.38,6.30630054]
[1750903296330,37.14,145.42,145.38,6.30630054]
[1750903297425,6.8734,145.41,145.38,6.30630054]
[1750903297728,37.14,145.42,145.38,6.30630054]
[1750903298028,6.8741,145.4,145.38,6.30630054]
[1750903298227,37.14,145.42,145.38,6.30630054]
[1750903298425,6.8736,145.41,145.38,6.30630054]
[1750903299230,6.8738,145.4,145.38,6.30630054]
[1750903300021,6.8734,145.41,145.38,6.30630054]
[1750903300226,37.14,145.42,145.38,6.30630054]
[1750903300926,44.70572793,145.45,145.38,6.30630054]
[1750903301123,39.0326,145.45,145.39,6.30630054]
[1750903301325,36.62,145.45,145.39,6.30630054]
[1750903301526,36.62,145.45,145.41,6.30630054]
[1750903301826,43.4918,145.45,145.41,6.30630054]
[1750903302425,43.4918,145.45,145.41,13.17930054]
[1750903303032,43.4918,145.45,145.41,6.30630054]
[1750903303830,6.8711,145.46,145.41,6.30630054]
[1750903304037,6.8711,145.46,145.42,6.30630054]
[1750903304426,6.8705,145.47,145.42,13.17880054]
[1750903305028,36.62,145.48,145.42,13.17880054]
[1750903305623,36.62,145.48,145.42,6.30630054]
[1750903306933,730.48,145.54,145.39,14.92356042]
[1750903306934,42.29312793,145.53,145.45,6.30630054]
[1750903307135,47.04902793,145.53,145.46,6.30630054]
[1750903307528,6.8699,145.49,145.45,6.30630054]
[1750903307732,47.04902793,145.53,145.45,6.30630054]
[1750903308035,47.04902793,145.53,145.46,6.30630054]
[1750903308634,6.8686,145.51,145.46,13.17680054]
[1750903309732,6.8691,145.5,145.46,13.17680054]
[1750903310433,6.8691,145.5,145.47,6.30630054]
[1750903310631,41.3759,145.53,145.47,6.30630054]
[1750903310632,6.8696,145.49,145.47,6.30630054]
[1750903310832,6.8696,145.49,145.46,6.30630054]
[1750903311138,5.67312793,145.51,145.45,6.30630054]
[1750903311438,6.8704,145.48,145.45,6.30630054]
[1750903311932,6.8706,145.47,145.45,6.30630054]
[1750903312830,6.8709,145.46,145.45,6.30630054]
[1750903313131,6.8709,145.46,145.43,6.30630054]
[1750903313936,6.8705,145.47,145.43,6.30630054]
[1750903317134,6.8705,145.47,145.43,13.17860054]
[1750903317437,6.8701,145.48,145.43,16.57963732]
[1750903317627,6.8701,145.48,145.44,6.30630054]
[1750903318132,36.62,145.49,145.44,6.30630054]
[1750903318337,36.62,145.49,145.46,6.30630054]
[1750903318536,40.02103678,145.52,145.46,6.30630054]
[1750903318928,6.8696,145.49,145.46,6.30630054]
[1750903319139,40.02103678,145.52,145.46,6.30630054]
[1750903319331,40.02103678,145.52,145.45,9.70733732]
[1750903320239,6.8699,145.49,145.45,9.70733732]
[1750903320636,6.8699,145.49,145.45,6.30630054]
[1750903321339,36.62,145.56,145.48,3.40103678]
[1750903321533,36.62,145.56,145.5,9.68126932]
[1750903322043,6.8671,145.55,145.5,16.55006932]
[1750903322240,36.62,145.56,145.5,9.68126932]
[1750903323740,6.8672,145.54,145.5,9.68126932]
[1750903324840,6.8677,145.53,145.5,9.68126932]
[1750903325047,6.8677,145.53,145.49,6.28023254]
[1750903325844,40.02103678,145.56,145.49,6.28023254]
[1750903326534,3.40103678,145.53,145.48,6.28023254]
[1750903326729,36.6,145.52,145.47,6.28023254]
[1750903327239,6.8693,145.5,145.47,6.28023254]
[1750903329744,6.8687,145.51,145.47,6.28023254]
[1750903330047,36.6,145.52,145.47,6.28023254]
[1750903330347,6.8695,145.5,145.47,6.28023254]
[1750903331348,36.6,145.52,145.47,16.55166932]
[1750903331349,6.8686,145.51,145.47,16.55166932]
[1750903331646,36.6,145.52,145.48,6.28023254]
[1750903332141,36.6,145.52,145.48,13.14983254]
[1750903332340,36.6,145.52,145.49,6.28023254]
[1750903332548,6.868,145.53,145.49,9.68126932]
[1750903333252,6.8679,145.53,145.49,3.40103678]
[1750903333439,36.88,145.55,145.49,3.40103678]
[1750903333748,40.28103678,145.55,145.49,3.40103678]
[1750903333939,6.8681,145.52,145.49,3.40103678]
[1750903334341,36.88,145.55,145.49,3.40103678]
[1750903334540,6.8682,145.52,145.49,3.40103678]
[1750903337750,6.8687,145.51,145.47,9.68126932]
[1750903338251,6.8682,145.52,145.48,6.8699]
[1750903338446,6.8682,145.52,145.47,9.68126932]
[1750903338846,6.8682,145.52,145.47,16.55136932]
[1750903340349,6.8682,145.52,145.48,6.28023254]
[1750903340545,6.8687,145.51,145.48,6.28023254]
[1750903340852,36.88,145.55,145.49,3.40103678]
[1750903341243,6.8673,145.54,145.49,16.55066932]
[1750903341550,36.88,145.55,145.49,13.14963254]
[1750903342343,6.8673,145.54,145.49,13.14963254]
[1750903344352,36.88,145.55,145.5,6.28023254]
[1750903344353,6.8677,145.53,145.5,6.28023254]
[1750903344553,36.88,145.55,145.5,16.54996932]
[1750903344754,36.88,145.55,145.51,6.28023254]
[1750903345154,43.747,145.55,145.51,13.14873254]
[1750903345354,43.747,145.55,145.51,6.28023254]
[1750903345554,6.8675,145.54,145.51,6.28023254]
[1750903345757,36.88,145.55,145.5,9.68126932]
[1750903345956,36.88,145.55,145.48,47.75980695]
[1750903345957,3.40103678,145.54,145.49,6.28023254]
[1750903346152,6.8689,145.51,145.48,6.28023254]
[1750903346759,36.88,145.55,145.5,3.40103678]
[1750903347052,36.88,145.55,145.51,6.26705558]
[1750903347449,43.7468,145.55,145.51,6.26705558]
[1750903348262,36.88,145.55,145.51,13.13555558]
[1750903348460,36.88,145.55,145.52,9.66809236]
[1750903348962,6.8672,145.54,145.52,6.26705558]
[1750903349261,36.88,145.55,145.52,6.26705558]
[1750903349955,6.8663,145.56,145.52,13.13495558]
[1750903350157,6.8663,145.56,145.53,6.26705558]
[1750903350357,24.00484432,145.75,145.55,3.39445706]
[1750903350564,2.3294,145.69,145.6,9.65949802]
[1750903350765,36.86,145.68,145.62,3.39244244]
[1750903350958,36.86,145.68,145.62,9.65949802]
[1750903351156,36.86,145.68,145.64,3.39244244]
[1750903351360,36.86,145.71,145.64,3.39244244]
[1750903351561,36.86,145.71,145.64,9.65949802]
[1750903351562,6.8605,145.69,145.64,9.65949802]
[1750903351856,6.8605,145.69,145.65,3.39244244]
[1750903352061,36.86,145.71,145.65,3.39244244]
[1750903352255,43.7196,145.71,145.65,5.64916457]
[1750903352448,36.86,145.71,145.65,5.64916457]
[1750903353158,6.8597,145.7,145.65,5.64916457]
[1750903353349,36.86,145.71,145.65,5.64916457]
[1750903353549,36.86,145.71,145.66,2.4023]
[1750903354254,6.8604,145.69,145.66,2.4023]
[1750903354658,36.86,145.71,145.66,2.4023]
[1750903354862,6.861,145.67,145.66,2.4023]
[1750903355158,6.861,145.67,145.64,5.64916457]
[1750903355361,42.50916457,145.71,145.62,41.677]
[1750903355567,42.50916457,145.71,145.62,39.3164]
[1750903356565,36.86,145.71,145.63,5.64916457]
[1750903357058,36.86,145.71,145.63,130.64916457]
[1750903357257,36.86,145.71,145.65,5.64916457]
[1750903357951,632.4802,145.74,145.67,5.64916457]
[1750903358555,6.8596,145.71,145.67,5.64916457]
[1750903358760,632.4802,145.74,145.65,130.64916457]
[1750903359155,632.4802,145.74,145.65,5.64916457]
[1750903359567,632.4802,145.74,145.66,36.84]
[1750903359759,6.8595,145.71,145.66,36.84]
[1750903361250,6.8595,145.71,145.67,5.64916457]
[1750903361452,6.8588,145.72,145.67,5.64916457]
[1750903361866,4.6837,145.78,145.67,5.64916457]
[1750903362069,4.6837,145.78,145.69,5.64916457]
[1750903362070,37.68,145.77,145.69,5.64916457]
[1750903362458,43.32916457,145.77,145.67,10.48606457]
[1750903362760,43.32916457,145.77,145.66,36.84]
[1750903362761,5.64916457,145.75,145.66,36.84]
[1750903363168,37.68,145.77,145.66,36.84]
[1750903363169,5.64916457,145.73,145.66,36.84]
[1750903363465,37.68,145.72,145.63,47.91746457]
[1750903363864,37.68,145.72,145.62,2.4564]
[1750903363865,5.64916457,145.69,145.62,2.4564]
[1750903364257,37.68,145.68,145.62,2.4564]
[1750903366964,37.68,145.68,145.6,37.68]
[1750903367665,5.64916457,145.67,145.58,2.3206]
[1750903367864,37.68,145.68,145.58,2.3206]
[1750903367865,5.64916457,145.65,145.58,2.3206]
[1750903368168,37.68,145.64,145.58,2.3206]
[1750903371675,37.68,145.68,145.6,5.64916457]
[1750903371875,37.68,145.68,145.58,2.3206]
[1750903372074,37.68,145.68,145.61,5.64916457]
[1750903372276,6.8615,145.66,145.61,5.64916457]
[1750903372571,37.68,145.68,145.61,5.64916457]
[1750903372775,6.8615,145.66,145.61,12.51286457]
[1750903373869,6.862,145.65,145.6,6.8642]
[1750903374269,6.862,145.65,145.6,10.25653887]
[1750903375166,41.07233887,145.68,145.6,3.39233887]
[1750903375873,41.07233887,145.68,145.6,6.8642]
[1750903376176,41.07233887,145.68,145.59,37.68]
[1750903376177,41.07233887,145.68,145.59,41.07233887]
[1750903376876,6.8624,145.65,145.6,6.8643]
[1750903377667,6.8626,145.64,145.59,47.93703887]
[1750903378386,6.863,145.63,145.59,41.07233887]
[1750903378571,37.68,145.64,145.58,2.3206]
[1750903378777,37.68,145.64,145.57,3.39233887]
[1750903379275,41.07233887,145.64,145.57,3.39233887]
[1750903379470,41.07233887,145.64,145.55,128.39233887]
[1750903379773,3.39233887,145.62,145.55,135.25863887]
[1750903379965,41.07233887,145.64,145.55,128.39233887]
[1750903380165,41.07233887,145.64,145.57,3.39233887]
[1750903380380,37.68,145.68,145.62,3.3931109]
[1750903381564,6.8612,145.67,145.63,6.8629]
[1750903381769,37.68,145.68,145.62,3.39112095]
[1750903381965,37.68,145.68,145.61,3.39112095]
[1750903382481,6.8623,145.65,145.6,12.51708412]
[1750903382976,37.68,145.68,145.58,5.65328412]
[1750903383174,37.68,145.68,145.58,12.51838412]
[1750903383175,6.8632,145.63,145.58,12.51838412]
[1750903383378,6.8632,145.63,145.58,5.65328412]
[1750903384375,6.8632,145.63,145.59,6.8648]
[1750903384681,5.65328412,145.67,145.6,5.65328412]
[1750903384682,37.68,145.67,145.6,5.65328412]
[1750903385375,6.862,145.65,145.61,6.8638]
[1750903387784,37.68,145.67,145.61,5.65328412]
[1750903388883,37.68,145.67,145.6,6.8642]
[1750903389083,37.68,145.67,145.57,171.12770695]
[1750903389084,43.33328412,145.67,145.57,174.6003397]
[1750903389382,6.8627,145.64,145.59,6.8644]
[1750903389988,6.8627,145.64,145.58,131.26705558]
[1750903390384,6.8627,145.64,145.6,6.8643]
[1750903393183,6.8627,145.64,145.6,13.13135558]
[1750903394194,6.8627,145.64,145.61,6.26705558]
[1750903394393,37.68,145.67,145.61,11.9203397]
[1750903395181,6.8618,145.66,145.62,13.13035558]
[1750903395587,43.33328412,145.67,145.61,6.26705558]
[1750903395796,4.82788798,145.66,145.61,6.26705558]
[1750903395982,43.33328412,145.67,145.61,6.26705558]
[1750903396183,4.8278891,145.66,145.61,6.26705558]